fUSD/lending_fUSD_20240519
["ID","MTS","AMOUNT","RATE_DAILY","PERIOD"]
[327481089,1716105043081,-157.051916,0.00027438,4]
[327481091,1716105043092,-157.051916,0.00027448,10]
[327481094,1716105043103,-157.051916,0.00027478,8]
[327481096,1716105043113,-1000.0,0.000275,10]
[327481098,1716105043124,-4506.09340358,0.000275,4]
[327481100,1716105043134,-157.051916,0.00027508,8]
[327481102,1716105043144,-157.051916,0.00027518,10]
[327481104,1716105043155,-157.051916,0.00027528,4]
[327481106,1716105043165,-157.051916,0.00027538,4]
[327481108,1716105043176,-157.051916,0.00027548,10]
[327481110,1716105043186,-200.0,0.00027553,15]
[327481113,1716105043197,-150.0,0.00027555,2]
[327481115,1716105043207,-150.0,0.00027564,2]
[327481117,1716105043218,-150.0,0.00027565,2]
[327481119,1716105043228,-150.0,0.00027571,2]
[327481121,1716105043239,-150.0,0.00027576,2]
[327481123,1716105043249,-157.051916,0.00027578,8]
[327481125,1716105043260,-150.0,0.0002758,2]
[327481127,1716105043270,-200.0,0.00027582,2]
[327481130,1716105043280,-1000.0,0.00027582,15]
[327481132,1716105043290,-500.0,0.00027582,2]
[327481134,1716105043301,-150.0,0.00027582,2]
[327481136,1716105043325,-150.0,0.0002759,2]
[327481138,1716105043335,-150.0,0.0002759,2]
[327481140,1716105043346,-566.26512,0.0002759,2]
[327481142,1716105043357,-170.07829266,0.00027591,2]
[327481144,1716105043367,-150.0,0.00027591,2]
[327481146,1716105043378,-150.0,0.00027598,2]
[327481149,1716105043388,-150.0,0.000276,2]
[327481151,1716105043399,-1300.0,0.000276,10]
[327481153,1716105043412,-150.0,0.00027602,2]
[327481155,1716105043422,-150.0,0.00027602,2]
[327481157,1716105043432,-150.0,0.00027604,2]
[327481159,1716105043443,-150.0,0.00027608,2]
[327481161,1716105043453,-157.051916,0.00027608,8]
[327481163,1716105043463,-150.0,0.0002761,2]
[327481166,1716105043473,-180.37889344,0.00027613,9]
[327481168,1716105043483,-150.0,0.00027613,2]
[327481170,1716105043492,-150.0,0.00027618,2]
[327481202,1716105043781,-157.051916,0.00027618,10]
[327481204,1716105043797,-432.2999,0.00027618,2]
[327481206,1716105043806,-150.0,0.00027623,2]
[327481208,1716105043816,-150.0,0.00027623,2]
[327481210,1716105043825,-150.0,0.00027624,2]
[327481212,1716105043835,-1500.0,0.00027625,2]
[327481214,1716105043844,-157.051916,0.00027628,4]
[327481216,1716105043853,-150.0,0.00027629,2]
[327481218,1716105043862,-150.0,0.00027631,2]
[327481220,1716105043872,-150.0,0.00027632,2]
[327481222,1716105043881,-150.0,0.00027632,2]
[327481224,1716105043891,-150.0,0.00027635,2]
[327481226,1716105043906,-157.051916,0.00027638,4]
[327481228,1716105043916,-150.0,0.00027638,2]
[327481230,1716105043925,-150.0,0.00027647,2]
[327481232,1716105043935,-157.051916,0.00027648,10]
[327481235,1716105043947,-150.0,0.00027651,2]
[327481236,1716105043956,-166.73,0.00027661,2]
[327481239,1716105043966,-286.57450461,0.00027667,2]
[327481241,1716105043979,-150.0,0.00027668,2]
[327481243,1716105043988,-150.0,0.00027668,2]
[327481245,1716105043997,-150.0,0.0002767,2]
[327481247,1716105044006,-150.0,0.0002767,2]
[327481249,1716105044016,-9790.0,0.0002767,2]
[327481251,1716105044025,-489.399232,0.00027671,2]
[327481253,1716105044035,-500.0,0.00027671,2]
[327481255,1716105044044,-150.0,0.00027671,2]
[327481257,1716105044053,-500.0,0.00027671,2]
[327481259,1716105044063,-500.0,0.00027671,2]
[327481261,1716105044073,-500.0,0.00027671,2]
[327481263,1716105044082,-500.0,0.00027671,2]
[327481265,1716105044092,-500.0,0.00027671,2]
[327481267,1716105044101,-500.0,0.00027671,2]
[327481269,1716105044110,-150.0,0.00027671,2]
[327481271,1716105044119,-500.0,0.00027671,2]
[327481273,1716105044129,-500.0,0.00027671,2]
[327481275,1716105044138,-1334.65,0.00027671,2]
[327481277,1716105044148,-500.0,0.00027671,2]
[327481279,1716105044157,-500.0,0.00027671,2]
[327481281,1716105044166,-500.0,0.00027671,2]
[327481283,1716105044177,-500.0,0.00027671,2]
[327481285,1716105044186,-613.97659444,0.00027671,2]
[327481287,1716105044195,-500.0,0.00027671,2]
[327481289,1716105044204,-500.0,0.00027671,2]
[327481291,1716105044213,-391.2919133,0.00027671,2]
[327481293,1716105044222,-500.0,0.00027671,2]
[327481294,1716105044233,-500.0,0.00027671,2]
[327481295,1716105044242,-500.0,0.00027671,2]
[327481296,1716105044251,-500.0,0.00027671,2]
[327481297,1716105044261,-204.07690826,0.00027671,2]
[327481298,1716105044270,-993.41,0.00027671,2]
[327481299,1716105044279,-500.0,0.00027671,2]
[327481300,1716105044287,-513.7413407,0.00027671,2]
[327481301,1716105044296,-772.28,0.00027671,2]
[327481302,1716105044305,-500.0,0.00027671,2]
[327481303,1716105044313,-938.35,0.00027671,2]
[327481304,1716105044322,-716.64,0.00027671,2]
[327481305,1716105044331,-3181.88,0.00027671,2]
[327481306,1716105044340,-626.03,0.00027671,2]
[327481307,1716105044350,-500.0,0.00027671,2]
[327481308,1716105044359,-641.49,0.00027671,2]
[327481309,1716105044369,-500.0,0.00027671,2]
[327481310,1716105044378,-500.0,0.00027671,2]
[327481311,1716105044388,-737.8,0.00027671,2]
[327481312,1716105044400,-1852.94,0.00027671,2]
[327481313,1716105044409,-500.0,0.00027671,2]
[327481314,1716105044417,-500.0,0.00027671,2]
[327481315,1716105044426,-500.0,0.00027671,2]
[327481316,1716105044435,-500.0,0.00027671,2]
[327481317,1716105044443,-755.04,0.00027671,2]
[327481318,1716105044452,-503.92,0.00027671,2]
[327481319,1716105044461,-500.0,0.00027671,2]
[327481320,1716105044470,-637.39,0.00027671,2]
[327481321,1716105044479,-599.08,0.00027671,2]
[327481322,1716105044488,-500.0,0.00027671,2]
[327481323,1716105044497,-594.16,0.00027671,2]
[327481324,1716105044505,-500.0,0.00027671,2]
[327481325,1716105044515,-500.0,0.00027671,2]
[327481326,1716105044524,-632.9,0.00027671,2]
[327481327,1716105044534,-500.0,0.00027671,2]
[327481328,1716105044543,-523.67,0.00027671,2]
[327481329,1716105044552,-500.0,0.00027671,2]
[327481330,1716105044562,-500.0,0.00027671,2]
[327481331,1716105044571,-624.45431457,0.00027671,2]
[327481332,1716105044581,-500.0,0.00027671,2]
[327481333,1716105044590,-537.12,0.00027671,2]
[327481334,1716105044600,-2190.3,0.00027671,2]
[327481335,1716105044609,-500.0,0.00027671,2]
[327481336,1716105044618,-500.0,0.00027671,2]
[327481337,1716105044628,-500.0,0.00027671,2]
[327481338,1716105044637,-644.65335286,0.00027671,2]
[327481339,1716105044647,-500.0,0.00027671,2]
[327481340,1716105044656,-500.0,0.00027671,2]
[327481341,1716105044666,-1008.43,0.00027671,2]
[327481342,1716105044675,-500.0,0.00027671,2]
[327481343,1716105044684,-750.61,0.00027671,2]
[327481344,1716105044693,-824.86,0.00027671,2]
[327481345,1716105044702,-547.66,0.00027671,2]
[327481346,1716105044712,-500.0,0.00027671,2]
[327481347,1716105044721,-555.45,0.00027671,2]
[327481348,1716105044731,-500.0,0.00027671,2]
[327481349,1716105044741,-500.0,0.00027671,2]
[327481350,1716105044750,-1074.74,0.00027671,2]
[327481351,1716105044759,-500.0,0.00027671,2]
[327481352,1716105044768,-500.0,0.00027671,2]
[327481353,1716105044778,-991.07,0.00027671,2]
[327481354,1716105044787,-930.97,0.00027671,2]
[327481355,1716105044796,-392.30340032,0.00027671,2]
[327481356,1716105044806,-2140.78,0.00027671,2]
[327481357,1716105044815,-500.0,0.00027671,2]
[327481358,1716105044828,-500.0,0.00027671,2]
[327481359,1716105044837,-600.81,0.00027671,2]
[327481360,1716105044846,-3427.97,0.00027671,2]
[327481361,1716105044855,-500.0,0.00027671,2]
[327481362,1716105044865,-500.0,0.00027671,2]
[327481363,1716105044875,-500.0,0.00027671,2]
[327481364,1716105044885,-5043.36,0.00027671,2]
[327481365,1716105044897,-697.23,0.00027671,2]
[327481366,1716105044908,-500.0,0.00027671,2]
[327481367,1716105044917,-500.0,0.00027671,2]
[327481368,1716105044926,-1198.05,0.00027671,2]
[327481369,1716105044936,-1227.03,0.00027671,2]
[327481370,1716105044945,-500.0,0.00027671,2]
[327481371,1716105044955,-1015.4,0.00027671,2]
[327481372,1716105044964,-953.1,0.00027671,2]
[327481373,1716105044973,-500.0,0.00027671,2]
[327481374,1716105044983,-526.79,0.00027671,2]
[327481375,1716105044992,-500.0,0.00027671,2]
[327481376,1716105045001,-500.0,0.00027671,2]
[327481377,1716105045010,-881.34,0.00027671,2]
[327481378,1716105045021,-2535.83,0.00027671,2]
[327481379,1716105045031,-740.98,0.00027671,2]
[327481380,1716105045040,-500.0,0.00027671,2]
[327481381,1716105045050,-558.84,0.00027671,2]
[327481382,1716105045059,-500.0,0.00027671,2]
[327481383,1716105045069,-800.66,0.00027671,2]
[327481384,1716105045078,-500.0,0.00027671,2]
[327481385,1716105045088,-2188.23,0.00027671,2]
[327481386,1716105045098,-500.0,0.00027671,2]
[327481387,1716105045108,-500.0,0.00027671,2]
[327481388,1716105045117,-500.0,0.00027671,2]
[327481389,1716105045126,-11076.16,0.00027671,2]
[327481390,1716105045136,-500.0,0.00027671,2]
[327481391,1716105045145,-500.0,0.00027671,2]
[327481392,1716105045154,-500.0,0.00027671,2]
[327481393,1716105045164,-500.0,0.00027671,2]
[327481394,1716105045173,-500.0,0.00027671,2]
[327481395,1716105045183,-500.0,0.00027671,2]
[327481396,1716105045192,-500.0,0.00027671,2]
[327481397,1716105045201,-500.0,0.00027671,2]
[327481398,1716105045210,-1195.83,0.00027671,2]
[327481399,1716105045220,-500.0,0.00027671,2]
[327481400,1716105045230,-1145.09,0.00027671,2]
[327481401,1716105045239,-1650.64,0.00027671,2]
[327481402,1716105045249,-500.0,0.00027671,2]
[327481403,1716105045259,-500.0,0.00027671,2]
[327481404,1716105045270,-503.59,0.00027671,2]
[327481405,1716105045279,-500.0,0.00027671,2]
[327481406,1716105045289,-2108.62,0.00027671,2]
[327481407,1716105045299,-500.0,0.00027671,2]
[327481408,1716105045308,-749.31,0.00027671,2]
[327481409,1716105045317,-500.0,0.00027671,2]
[327481410,1716105045327,-1791.2,0.00027671,2]
[327481411,1716105045336,-500.0,0.00027671,2]
[327481412,1716105045345,-7786.85,0.00027671,2]
[327481413,1716105045355,-1224.27,0.00027671,2]
[327481414,1716105045364,-1190.86,0.00027671,2]
[327481415,1716105045374,-553.55,0.00027671,2]
[327481416,1716105045383,-500.0,0.00027671,2]
[327481417,1716105045392,-500.0,0.00027671,2]
[327481418,1716105045401,-500.0,0.00027671,2]
[327481419,1716105045411,-647.65543032,0.00027671,2]
[327481420,1716105045420,-540.15,0.00027671,2]
[327481421,1716105045430,-1237.54,0.00027671,2]
[327481422,1716105045439,-500.0,0.00027671,2]
[327481423,1716105045449,-500.0,0.00027671,2]
[327481424,1716105045458,-150.0,0.00027676,2]
[327481425,1716105045467,-150.0,0.00027676,2]
[327481426,1716105045476,-157.051916,0.00027678,8]
[327481427,1716105045486,-150.0,0.00027678,2]
[327481428,1716105045495,-150.0,0.00027679,2]
[327481429,1716105045504,-150.0,0.00027682,2]
[327481430,1716105045513,-150.0,0.00027686,2]
[327481431,1716105045523,-150.0,0.00027691,2]
[327481432,1716105045533,-150.0,0.00027693,2]
[327481433,1716105045542,-150.0,0.00027693,2]
[327481434,1716105045551,-150.0,0.00027694,2]
[327481435,1716105045561,-9750.76294122,0.000277,2]
[327481436,1716105045570,-200.0,0.000277,10]
[327481437,1716105045580,-150.0,0.00027703,2]
[327481438,1716105045590,-150.0,0.00027704,2]
[327481439,1716105045599,-150.0,0.00027704,2]
[327481440,1716105045610,-190.72025328,0.00027705,2]
[327481441,1716105045620,-157.051916,0.00027708,8]
[327481442,1716105045629,-729.71,0.00027711,2]
[327481443,1716105045639,-500.0,0.00027711,2]
[327481444,1716105045650,-500.0,0.00027711,2]
[327481445,1716105045660,-500.0,0.00027711,2]
[327481446,1716105045669,-596.58442,0.00027711,2]
[327481447,1716105045679,-726.01,0.00027712,2]
[327481448,1716105045688,-500.0,0.00027712,2]
[327481449,1716105045698,-500.0,0.00027712,2]
[327481450,1716105045707,-500.0,0.00027712,2]
[327481451,1716105045716,-792.54,0.00027712,2]
[327481452,1716105045726,-500.0,0.00027712,2]
[327481453,1716105045735,-560.4460461,0.00027712,2]
[327481454,1716105045745,-581.14,0.00027712,2]
[327481455,1716105045754,-500.0,0.00027712,2]
[327481456,1716105045763,-390.58354786,0.00027712,2]
[327481458,1716105045772,-500.0,0.00027712,2]
[327481460,1716105045781,-500.0,0.00027712,2]
[327481461,1716105045791,-500.0,0.00027712,2]
[327481462,1716105045800,-500.0,0.00027712,2]
[327481463,1716105045810,-500.0,0.00027712,2]
[327481464,1716105045819,-500.0,0.00027712,2]
[327481465,1716105045828,-500.0,0.00027712,2]
[327481466,1716105045838,-500.0,0.00027712,2]
[327481467,1716105045847,-500.0,0.00027712,2]
[327481468,1716105045858,-519.75334683,0.00027712,2]
[327481469,1716105045867,-500.0,0.00027712,2]
[327481470,1716105045876,-153.43328399,0.00027712,2]
[327481471,1716105045886,-500.0,0.00027712,2]
[327481472,1716105045897,-500.0,0.00027712,2]
[327481473,1716105045908,-500.0,0.00027712,2]
[327481474,1716105045918,-500.0,0.00027712,2]
[327481475,1716105045926,-547.25,0.00027712,2]
[327481476,1716105045935,-500.0,0.00027712,2]
[327481477,1716105045945,-500.0,0.00027712,2]
[327481478,1716105045956,-519.06656088,0.00027712,2]
[327481479,1716105045965,-504.16,0.00027712,2]
[327481480,1716105045975,-479.4264967,0.00027712,2]
[327481481,1716105045985,-473.24617923,0.00027712,2]
[327481482,1716105045995,-500.0,0.00027712,2]
[327481483,1716105046004,-487.41423658,0.00027712,2]
[327481484,1716105046014,-510.94626099,0.00027712,2]
[327481485,1716105046023,-161.49706034,0.00027712,2]
[327481486,1716105046032,-500.0,0.00027712,2]
[327481487,1716105046042,-500.0,0.00027712,2]
[327481488,1716105046051,-500.0,0.00027712,2]
[327481489,1716105046061,-500.0,0.00027712,2]
[327481490,1716105046070,-500.0,0.00027712,2]
[327481491,1716105046080,-535.01178311,0.00027712,2]
[327481492,1716105046090,-500.48,0.00027712,2]
[327481493,1716105046099,-500.0,0.00027712,2]
[327481494,1716105046108,-535.05210215,0.00027712,2]
[327481495,1716105046118,-510.14646004,0.00027712,2]
[327481496,1716105046127,-511.93444491,0.00027712,2]
[327481497,1716105046137,-534.90516997,0.00027712,2]
[327481498,1716105046147,-523.38669609,0.00027712,2]
[327481499,1716105046156,-524.31638925,0.00027712,2]
[327481500,1716105046168,-533.69132065,0.00027712,2]
[327481501,1716105046179,-500.0,0.00027712,2]
[327481502,1716105046189,-511.70082179,0.00027712,2]
[327481503,1716105046198,-500.0,0.00027712,2]
[327481504,1716105046208,-500.0,0.00027712,2]
[327481505,1716105046218,-500.0,0.00027712,2]
[327481506,1716105046228,-500.0,0.00027712,2]
[327481507,1716105046238,-532.62840197,0.00027712,2]
[327481508,1716105046247,-500.0,0.00027712,2]
[327481509,1716105046256,-500.0,0.00027712,2]
[327481510,1716105046265,-500.0,0.00027712,2]
[327481511,1716105046275,-500.0,0.00027712,2]
[327481512,1716105046284,-500.0,0.00027712,2]
[327481513,1716105046293,-523.22,0.00027713,2]
[327481514,1716105046303,-500.0,0.00027713,2]
[327481515,1716105046312,-938.43,0.00027713,2]
[327481516,1716105046322,-1138.13,0.00027713,2]
[327481517,1716105046331,-833.77,0.00027713,2]
[327481518,1716105046341,-500.0,0.00027713,2]
[327481520,1716105046350,-994.86,0.00027713,2]
[327481522,1716105046360,-2358.37,0.00027713,2]
[327481524,1716105046369,-197.363293,0.00027713,7]
[327481526,1716105046378,-197.363293,0.00027713,7]
[327481528,1716105046389,-151.0,0.00027713,7]
[327481530,1716105046398,-173.307008,0.00027713,7]
[327481532,1716105046408,-425.017536,0.00027713,7]
[327481534,1716105046417,-425.017536,0.00027713,7]
[327481536,1716105046427,-657.87,0.00027713,2]
[327481538,1716105046437,-4550.28,0.00027713,2]
[327481540,1716105046446,-572.64,0.00027713,2]
[327481542,1716105046455,-500.0,0.00027715,2]
[327481544,1716105046465,-434.0498017,0.00027715,2]
[327481545,1716105046474,-157.051916,0.00027718,10]
[327481546,1716105046483,-150.0,0.0002772,2]
[327481547,1716105046492,-150.0,0.00027723,2]
[327481548,1716105046501,-157.051916,0.00027728,4]
[327481549,1716105046510,-269.68657829,0.0002773,2]
[327481550,1716105046519,-150.0,0.0002773,2]
[327481551,1716105046528,-150.0,0.00027731,2]
[327481552,1716105046538,-150.0,0.00027732,2]
[327481553,1716105046547,-150.0,0.00027733,2]
[327481554,1716105046557,-150.0,0.00027733,2]
[327481555,1716105046566,-150.0,0.00027735,2]
[327481556,1716105046575,-150.0,0.00027735,2]
[327481557,1716105046584,-150.0,0.00027736,2]
[327481558,1716105046594,-157.051916,0.00027738,4]
[327481559,1716105046603,-150.0,0.00027739,2]
[327481560,1716105046612,-150.0,0.0002774,2]
[327481561,1716105046621,-150.0,0.00027741,2]
[327481562,1716105046631,-150.0,0.00027742,2]
[327481563,1716105046640,-150.0,0.00027745,2]
[327481564,1716105046651,-660.0,0.00027746,5]
[327481565,1716105046660,-157.051916,0.00027748,10]
[327481566,1716105046670,-150.0,0.0002775,2]
[327481567,1716105046680,-150.0,0.0002775,2]
[327481568,1716105046689,-150.0,0.00027753,2]
[327481569,1716105046699,-150.0,0.00027754,2]
[327481570,1716105046708,-150.0,0.00027755,2]
[327481571,1716105046718,-150.0,0.00027759,2]
[327481572,1716105046729,-150.0,0.0002776,2]
[327481573,1716105046740,-150.0,0.00027761,2]
[327481574,1716105046749,-150.0,0.00027763,2]
[327481575,1716105046759,-1115.96147039,0.00027768,2]
[327481576,1716105046768,-4281.14456431,0.00027768,2]
[327481577,1716105046778,-215.12896689,0.00027768,2]
[327481578,1716105046787,-741.81673273,0.00027768,2]
[327481579,1716105046798,-150.0,0.00027772,2]
[327481580,1716105046810,-1500.0,0.00027774,2]
[327481581,1716105046820,-351.31457934,0.00027777,2]
[327481582,1716105046944,-157.051916,0.00027778,8]
[327481583,1716105046981,-150.0,0.00027778,2]
[327481584,1716105046992,-150.0,0.00027779,2]
[327481585,1716105047002,-150.0,0.00027779,2]
[327481586,1716105047011,-7595.8133,0.0002778,2]
[327481587,1716105047021,-162.14134821,0.0002778,2]
[327481588,1716105047031,-150.0,0.00027782,2]
[327481589,1716105047041,-150.0,0.00027784,2]
[327481590,1716105047050,-150.0,0.00027784,2]
[327481591,1716105047060,-300.0,0.00027787,2]
[327481592,1716105047070,-150.0,0.00027789,2]
[327481593,1716105047079,-150.0,0.00027792,2]
[327481594,1716105047089,-150.0,0.00027793,2]
[327481595,1716105047099,-150.0,0.00027795,2]
[327481596,1716105047109,-150.0,0.00027797,2]
[327481597,1716105047118,-150.0,0.00027797,2]
[327481598,1716105047128,-150.0,0.000278,2]
[327481599,1716105047137,-200.0,0.000278,10]
[327481600,1716105047147,-150.0,0.00027802,2]
[327481601,1716105047157,-150.0,0.00027804,2]
[327481602,1716105047168,-150.0,0.00027805,2]
[327481603,1716105047177,-157.051916,0.00027808,8]
[327481604,1716105047186,-150.0,0.0002781,2]
[327481605,1716105047196,-150.0,0.00027814,2]
[327481606,1716105047206,-150.0,0.00027815,2]
[327481607,1716105047215,-150.0,0.00027815,2]
[327481608,1716105047225,-150.0,0.00027823,2]
[327481609,1716105047235,-300.0,0.00027824,2]
[327481610,1716105047244,-150.0,0.0002783,2]
[327481611,1716105047254,-1115.96147039,0.00027834,2]
[327481612,1716105047264,-4281.1445643,0.00027834,2]
[327481613,1716105047273,-741.81673273,0.00027834,2]
[327481614,1716105047283,-174510.19432763,0.00027835,3]
[327481615,1716105047292,-8845.99136669,0.00027837,3]
[327481616,1716105047302,-233509.73127169,0.0002784,2]
[327481617,1716105047311,-151.0,0.0002784,7]
[327481618,1716105047321,-151.0,0.0002784,7]
[327481619,1716105047330,-197.363293,0.0002784,7]
[327481620,1716105047339,-197.363293,0.0002784,7]
[327481621,1716105047349,-151.0,0.0002784,7]
[327481622,1716105047358,-425.017536,0.0002784,7]
[327481623,1716105047368,-425.017536,0.0002784,7]
[327481624,1716105047377,-157.051916,0.00027848,10]
[327481625,1716105047386,-150.0,0.00027855,2]
[327481626,1716105047396,-875.1606346,0.00027864,2]
[327481627,1716105047405,-2596.5352058,0.00027864,2]
[327481628,1716105047416,-12818.0431073,0.00027864,2]
[327481629,1716105047425,-2000.0,0.00027867,2]
[327481630,1716105047434,-155.0,0.00027868,2]
[327481631,1716105047443,-523.11653558,0.00027868,2]
[327481632,1716105047453,-155.18891023,0.00027868,2]
[327481633,1716105047462,-3283.15688615,0.00027868,2]
[327481634,1716105047472,-409.53251773,0.00027868,2]
[327481635,1716105047481,-1050.7113772,0.00027868,2]
[327481636,1716105047490,-783.29624007,0.00027868,2]
[327481637,1716105047499,-1213.7455377,0.00027868,2]
[327481638,1716105047508,-155.0,0.00027868,2]
[327481639,1716105047518,-194.91493898,0.00027868,2]
[327481640,1716105047528,-657256.21517692,0.00027868,2]
[327481641,1716105047548,-2078.50765311,0.00027868,2]
[327481642,1716105047721,-151.0,0.00027712,7]
[327481643,1716105047730,-151.0,0.0002784,7]
[327481644,1716105047740,-2766.8,0.00027868,2]
[327481645,1716105047752,-417.6049997,0.00027868,2]
[327481646,1716105047763,-10097.2602663,0.00027868,2]
[327481647,1716105047775,-1224.5387,0.00027868,2]
[327481648,1716105047786,-817.112021,0.00027868,2]
[327481649,1716105047797,-1738.02113,0.00027868,2]
[327481650,1716105047824,-150.02027652,0.000273,2]
[327481651,1716105047833,-4395.47937936,0.00027868,2]
[327481652,1716105047848,-100869.66990005,0.00027868,2]
[327481653,1716105048007,-132937.88941238,0.00027868,2]
[327481654,1716105048019,-504.4097195,0.00027868,2]
[327481655,1716105048035,-3822.19600519,0.00027868,2]
[327481656,1716105048050,-397.0,0.000274,2]
[327481657,1716105048092,-604.0,0.000274,2]
[327481658,1716105048102,-163401.75502968,0.00027868,2]
[327481659,1716105048133,-144795.34703884,0.00027868,2]
[327481662,1716105112810,325.80304841,0.00017259,2]
[327481663,1716105490723,179.83,0.00026105,120]
[327481668,1716105599941,325.80304841,0.00017259,2]
[327481670,1716105744598,-744.0,0.000185,2]
[327481671,1716105744623,-480.27301113,0.00019625,2]
[327481672,1716105744649,-150.0,0.00019725,2]
[327481693,1716106232029,-164.74024365,0.00021309,2]
[327481694,1716106232039,-162.4520689,0.00023091,2]
[327481695,1716106232049,-168.13242215,0.00023803,2]
[327481696,1716106232059,-1167.03,0.00024124,2]
[327481697,1716106232069,-187.16945109,0.00024411,2]
[327481698,1716106232079,-157.09836255,0.00025,60]
[327481699,1716106232088,-687.25745166,0.00025,7]
[327481700,1716106232108,-4312.74254834,0.00025,7]
[327481701,1716106232118,-1591.24745166,0.00025366,7]
[327481702,1716106232129,-2397.07008,0.00025366,7]
[327481703,1716106232141,-1050.01818343,0.00025366,7]
[327481704,1716106232150,-250.0,0.0002595,2]
[327481705,1716106232160,-527.62,0.00025969,2]
[327481706,1716106232169,-159.65594073,0.0002597,2]
[327481707,1716106232369,-90.34405927,0.0002597,2]
[327481708,1716106232379,-237.04,0.00026043,2]
[327481709,1716106232388,-4232.71430935,0.00026078,2]
[327481720,1716106238090,-2560.35569065,0.00026078,2]
[327481721,1716106238100,-493.89,0.00026083,2]
[327481722,1716106238110,-150.0,0.00026112,2]
[327481723,1716106238120,-1167.03,0.00026388,2]
[327481724,1716106238129,-2363.82430935,0.00026591,2]
[327481725,1716106238256,-298.56874181,0.00026591,2]
[327481742,1716106242992,-2925.84694884,0.00026591,2]
[327481744,1716106243003,-155.0,0.00027,2]
[327481745,1716106243013,-157.051916,0.00027148,4]
[327481746,1716106243023,-157.051916,0.00027198,8]
[327481747,1716106243033,-157.051916,0.00027248,4]
[327481748,1716106243044,-157.051916,0.00027298,8]
[327481750,1716106243054,-1080.29559252,0.00027311,2]
[327481752,1716106243064,-1044.3419212,0.00027311,2]
[327481753,1716106243074,-157.051916,0.00027348,4]
[327481756,1716106243084,-475.08255568,0.00027395,2]
[327481760,1716106243094,-223.18478612,0.00027396,2]
[327481761,1716106243103,-48.57589564,0.00027397,2]
[327481766,1716106243115,-454.20945381,0.00027397,2]
[327481769,1716106243125,-269.47488324,0.00027397,2]
[327481772,1716106243134,-501.74872991,0.00027397,2]
[327481774,1716106243144,-205.35690712,0.00027397,2]
[327481776,1716106243154,-423.42623002,0.00027397,2]
[327481778,1716106243164,-500.0,0.00027397,2]
[327481780,1716106243174,-500.0,0.00027397,2]
[327481783,1716106243184,-500.0,0.00027397,2]
[327481785,1716106243194,-510.89848888,0.00027397,2]
[327481788,1716106243203,-502.52248748,0.00027397,2]
[327481791,1716106243213,-500.0,0.00027397,2]
[327481793,1716106243223,-503.53294177,0.00027397,2]
[327481795,1716106243233,-501.68630832,0.00027397,2]
[327481797,1716106243243,-360.86499891,0.00027397,2]
[327481799,1716106243253,-157.81806652,0.00027397,2]
[327481800,1716106243263,-507.13,0.00027397,2]
[327481801,1716106243273,-504.31217234,0.00027397,2]
[327481802,1716106243283,-502.26472583,0.00027397,2]
[327481803,1716106243293,-282.90968661,0.00027397,2]
[327481804,1716106243303,-500.0,0.00027397,2]
[327481805,1716106243313,-500.0,0.00027397,2]
[327481806,1716106243323,-320.03442535,0.00027397,2]
[327481807,1716106243332,-500.0,0.00027397,2]